bitfinex/quotes_ETHUSD_20250913
["timestamp","ask_amount","ask_price","bid_price","bid_amount"]
[1757751427169,275.93213154,4712.8,4712.7,45.66748933]
[1757751428339,277.16213154,4712.8,4712.7,45.66748933]
[1757751429960,278.39213154,4712.8,4712.7,45.66748933]
[1757751430369,278.39213154,4712.8,4712.7,15.66748933]
[1757751430542,278.39213154,4712.8,4712.7,45.66748933]
[1757751431335,279.62213154,4712.8,4712.7,15.66748933]
[1757751431534,279.62213154,4712.8,4712.7,45.66748933]
[1757751433078,280.85213154,4712.8,4712.7,45.66748933]
[1757751433534,280.85213154,4712.8,4712.7,15.66748933]
[1757751433754,280.85213154,4712.8,4712.7,45.66748933]
[1757751434494,282.08213154,4712.8,4712.7,45.66748933]
[1757751435897,283.31213154,4712.8,4712.7,44.27638933]
[1757751436788,283.59023154,4712.8,4712.7,44.27638933]
[1757751437100,285.75012873,4712.8,4712.7,44.27638933]
[1757751437283,286.98012873,4712.8,4712.7,44.27638933]
[1757751438816,286.98012873,4712.8,4712.7,14.27638933]
[1757751438999,288.21012873,4712.8,4712.7,44.27638933]
[1757751440361,289.44012873,4712.8,4712.7,44.27638933]
[1757751440903,289.44012873,4712.8,4712.7,14.27638933]
[1757751441197,289.44012873,4712.8,4712.7,44.27638933]
[1757751441799,290.67012873,4712.8,4712.7,44.27638933]
[1757751442001,288.51023154,4712.8,4712.7,44.27638933]
[1757751442601,288.51023154,4712.8,4712.7,40.76838933]
[1757751442957,288.51023154,4712.8,4712.7,44.27638933]
[1757751443155,289.74023154,4712.8,4712.7,44.27638933]
[1757751443802,289.74023154,4712.8,4712.7,43.96069657]
[1757751444003,289.74023154,4712.8,4712.7,13.96069657]
[1757751444203,289.74023154,4712.8,4712.7,43.96069657]
[1757751444732,289.46213154,4712.8,4712.7,43.96069657]
[1757751445039,290.69213154,4712.8,4712.7,13.96069657]
[1757751445193,290.69213154,4712.8,4712.7,43.96069657]
[1757751446324,291.92213154,4712.8,4712.7,43.96069657]
[1757751446927,291.92213154,4712.8,4712.7,44.26509657]
[1757751447808,293.15213154,4712.8,4712.7,44.89319657]
[1757751448007,293.15213154,4712.8,4712.7,45.35919657]
[1757751449168,294.38213154,4712.8,4712.7,45.35919657]
[1757751450556,295.61213154,4712.8,4712.7,45.35919657]
[1757751452271,296.84213154,4712.8,4712.7,45.35919657]
[1757751453465,298.07213154,4712.8,4712.7,45.35919657]
[1757751454146,298.07213154,4712.8,4712.7,44.73109657]
[1757751454977,299.30213154,4712.8,4712.7,44.26509657]
[1757751456074,300.53213154,4712.8,4712.7,44.26509657]
[1757751456375,300.53213154,4712.8,4712.7,43.96069657]
[1757751457207,300.53213154,4712.8,4712.7,44.26509657]
[1757751457807,301.76213154,4712.8,4712.7,44.26509657]
[1757751458424,303.27925951,4712.8,4712.7,40.45269657]
[1757751458584,303.92915951,4712.8,4712.7,43.96069657]
[1757751458919,304.39345951,4712.8,4712.7,43.96069657]
[1757751459214,305.62345951,4712.8,4712.7,43.96069657]
[1757751460611,306.85345951,4712.8,4712.7,43.96069657]
[1757751461518,306.38915951,4712.8,4712.7,40.45269657]
[1757751461818,308.08345951,4712.8,4712.7,43.96069657]
[1757751462972,306.96925951,4712.8,4712.7,43.96069657]
[1757751463173,308.19925951,4712.8,4712.7,43.96069657]
[1757751464590,309.15115951,4712.8,4712.7,43.96069657]
[1757751465119,307.91213154,4712.8,4712.7,45.65060837]
[1757751465917,309.14213154,4712.8,4712.7,45.65060837]
[1757751467602,310.37213154,4712.8,4712.7,44.55250837]
[1757751467805,310.37213154,4712.8,4712.7,44.99980837]
[1757751468201,310.37213154,4712.8,4712.7,45.60750837]
[1757751468910,311.60213154,4712.8,4712.7,45.60750837]
[1757751470320,312.83213154,4712.8,4712.7,45.60750837]
[1757751471715,314.06213154,4712.8,4712.7,45.60750837]
[1757751473041,315.29213154,4712.8,4712.7,45.60750837]
[1757751474377,316.52213154,4712.8,4712.7,45.60750837]
[1757751476222,317.75213154,4712.8,4712.7,45.60750837]
[1757751476419,317.75213154,4712.8,4712.7,15.60750837]
[1757751476723,317.75213154,4712.8,4712.7,45.60750837]
[1757751477378,317.75213154,4712.8,4712.7,15.60750837]
[1757751477579,318.98213154,4712.8,4712.7,45.60750837]
[1757751478417,318.98213154,4712.8,4712.7,15.60750837]
[1757751478582,318.98213154,4712.8,4712.7,45.60750837]
[1757751479028,320.21213154,4712.8,4712.7,45.60750837]
[1757751480419,321.44213154,4712.8,4712.7,45.60750837]
[1757751481308,321.44213154,4712.8,4712.7,46.39950837]
[1757751481747,322.67213154,4712.8,4712.7,46.39950837]
[1757751482353,322.67213154,4712.8,4712.7,46.67472006]
[1757751482552,322.67213154,4712.8,4712.7,16.67472006]
[1757751482851,322.67213154,4712.8,4712.7,46.67472006]
[1757751483055,322.67213154,4712.8,4712.7,46.90257672]
[1757751483352,323.90213154,4712.8,4712.7,46.90257672]
[1757751484056,323.90213154,4712.8,4712.7,50.71025726]
[1757751484648,325.13213154,4712.8,4712.7,46.90257672]
[1757751486059,326.36213154,4712.8,4712.7,46.90257672]
[1757751487332,327.59213154,4712.8,4712.7,46.90257672]
[1757751488839,328.82213154,4712.8,4712.7,46.62736503]
[1757751490430,330.05213154,4712.8,4712.7,46.62736503]
[1757751491025,330.05213154,4712.8,4712.7,16.39950837]
[1757751491231,330.05213154,4712.8,4712.7,46.39950837]
[1757751492066,331.28213154,4712.8,4712.7,46.39950837]
[1757751493303,332.51213154,4712.8,4712.7,46.39950837]
[1757751494187,332.51213154,4712.8,4712.7,16.39950837]
[1757751494389,332.51213154,4712.8,4712.7,46.39950837]
[1757751494687,333.74213154,4712.8,4712.7,46.39950837]
[1757751495896,334.97213154,4712.8,4712.7,46.39950837]
[1757751497813,336.20213154,4712.8,4712.7,46.39950837]
[1757751499277,337.43213154,4712.8,4712.7,46.39950837]
[1757751500107,337.43213154,4712.8,4712.7,49.04250837]
[1757751500914,338.66213154,4712.8,4712.7,49.04250837]
[1757751501578,338.66213154,4712.8,4712.7,49.04150837]
[1757751502191,339.89213154,4712.8,4712.7,49.04150837]
[1757751502383,339.89213154,4712.8,4712.7,19.04150837]
[1757751502595,339.89213154,4712.8,4712.7,49.04150837]
[1757751503570,341.12213154,4712.8,4712.7,49.04150837]
[1757751505011,342.35213154,4712.8,4712.7,49.04150837]
[1757751505442,342.35213154,4712.8,4712.7,47.98650837]
[1757751505740,342.35213154,4712.8,4712.7,47.98550837]
[1757751506351,343.58213154,4712.8,4712.7,49.08570837]
[1757751507519,343.58213154,4712.8,4712.7,19.08570837]
[1757751507719,344.81213154,4712.8,4712.7,49.08570837]
[1757751508452,344.81213154,4712.8,4712.7,48.44990837]
[1757751508748,344.81213154,4712.8,4712.7,52.25758891]
[1757751509354,346.04213154,4712.8,4712.7,52.25758891]
[1757751509647,346.04213154,4712.8,4712.7,18.44990837]
[1757751509836,346.04213154,4712.8,4712.7,48.44990837]
[1757751510143,346.04213154,4712.8,4712.7,49.08570837]
[1757751510735,347.27213154,4712.8,4712.7,49.08570837]
[1757751511117,347.57133154,4712.8,4712.7,47.68510837]
[1757751511741,347.27213154,4712.8,4712.7,47.68510837]
[1757751512144,348.50213154,4712.8,4712.7,47.68510837]
[1757751513850,349.73213154,4712.8,4712.7,17.68510837]
[1757751514061,349.73213154,4712.8,4712.7,47.68510837]
[1757751514444,349.73213154,4712.8,4712.7,53.78410837]
[1757751515027,350.03283154,4712.8,4712.7,50.27810837]
[1757751515227,352.36263154,4712.8,4712.7,53.00625468]
[1757751515441,354.52252873,4712.8,4712.7,56.51225468]
[1757751516151,352.36263154,4712.8,4712.7,53.49269657]
[1757751516562,353.59263154,4712.8,4712.7,53.49269657]
[1757751517035,353.59263154,4712.8,4712.7,53.79716709]
[1757751518060,354.82263154,4712.8,4712.7,53.79716709]
[1757751519366,356.05263154,4712.8,4712.7,53.79716709]
[1757751520970,356.18283154,4712.8,4712.7,53.79716709]
[1757751521143,355.88213154,4712.8,4712.7,53.79716709]
[1757751521570,356.18133154,4712.8,4712.7,53.79716709]
[1757751522329,357.11213154,4712.8,4712.7,53.79716709]
[1757751522530,357.11213154,4712.8,4712.7,54.09096709]
[1757751522764,357.11213154,4712.8,4712.7,55.19116709]
[1757751522966,357.11213154,4712.8,4712.7,54.55536709]
[1757751523330,357.11213154,4712.8,4712.7,54.09096709]
[1757751523630,357.11213154,4712.8,4712.7,53.79716709]
[1757751523861,358.64133154,4712.8,4712.7,53.79716709]
[1757751525302,359.87133154,4712.8,4712.7,23.79716709]
[1757751525462,359.87133154,4712.8,4712.7,53.79716709]
[1757751526670,360.80213154,4712.8,4712.7,53.79716709]
[1757751527317,360.80213154,4712.8,4712.7,23.79716709]
[1757751527482,360.80213154,4712.8,4712.7,53.79716709]
[1757751528067,362.03213154,4712.8,4712.7,53.79716709]
[1757751530008,363.26213154,4712.8,4712.7,53.79716709]
[1757751530166,363.26213154,4712.8,4712.7,51.15416709]
[1757751530368,363.55323154,4712.8,4712.7,51.15416709]
[1757751531478,364.78323154,4712.8,4712.7,51.15416709]
[1757751533159,366.01323154,4712.8,4712.7,51.15416709]
[1757751534551,367.24323154,4712.8,4712.7,21.15416709]
[1757751534755,367.24323154,4712.8,4712.7,51.15416709]
[1757751535673,366.95213154,4712.8,4712.7,51.15416709]
[1757751535846,368.18213154,4712.8,4712.7,51.44596709]
[1757751536046,368.18213154,4712.8,4712.7,52.49416709]
[1757751537181,369.41213154,4712.8,4712.7,52.49416709]
[1757751538571,370.64213154,4712.8,4712.7,52.49416709]
[1757751538786,370.64213154,4712.8,4712.7,51.44596709]
[1757751539694,370.64213154,4712.8,4712.7,21.44596709]
[1757751539996,371.87213154,4712.8,4712.7,51.44596709]
[1757751540200,372.16323154,4712.8,4712.7,51.15416709]
[1757751540996,371.87213154,4712.8,4712.7,51.15416709]
[1757751541186,373.10213154,4712.8,4712.7,51.15416709]
[1757751542601,374.33213154,4712.8,4712.7,51.15416709]
[1757751544191,375.56213154,4712.8,4712.7,51.15416709]
[1757751544393,375.85323154,4712.8,4712.7,51.15416709]
[1757751545722,377.08323154,4712.8,4712.7,51.15416709]
[1757751547278,378.31323154,4712.8,4712.7,51.15416709]
[1757751547522,378.95643154,4712.8,4712.7,50.85069657]
[1757751547728,379.38603154,4712.8,4712.7,51.15516709]
[1757751547941,378.31323154,4712.8,4712.7,51.15516709]
[1757751548704,379.54323154,4712.8,4712.7,51.15516709]
[1757751549995,380.77323154,4712.8,4712.7,51.15516709]
[1757751551418,380.48213154,4712.8,4712.7,51.15516709]
[1757751551727,381.71213154,4712.8,4712.7,51.15516709]
[1757751552923,382.94213154,4712.8,4712.7,51.15516709]
[1757751554323,384.17213154,4712.8,4712.7,51.44696709]
[1757751556003,385.40213154,4712.8,4712.7,51.44696709]
[1757751556325,385.40213154,4712.8,4712.7,21.44696709]
[1757751556523,385.40213154,4712.8,4712.7,51.44696709]
[1757751557323,386.63213154,4712.8,4712.7,51.44696709]
[1757751558721,387.86213154,4712.8,4712.7,51.45266709]
[1757751558924,387.86213154,4712.8,4712.7,52.79327878]
[1757751559138,387.86213154,4712.8,4712.7,52.51806709]
[1757751559297,387.86213154,4712.8,4712.7,56.3296252]
[1757751560118,389.09213154,4712.8,4712.7,52.51806709]
[1757751560699,389.09213154,4712.8,4712.7,56.328174]
[1757751561401,390.32213154,4712.8,4712.7,26.328174]
[1757751561600,390.32213154,4712.8,4712.7,56.328174]
[1757751562212,390.32213154,4712.8,4712.7,55.863574]
[1757751562543,390.32213154,4712.8,4712.7,56.328174]
[1757751562695,391.55213154,4712.8,4712.7,56.328174]
[1757751562900,391.55213154,4712.8,4712.7,52.51806709]
[1757751564042,392.78213154,4712.8,4712.7,52.51806709]
[1757751564543,392.78213154,4712.8,4712.7,22.51806709]
[1757751564741,392.78213154,4712.8,4712.7,52.51806709]
[1757751564944,392.78213154,4712.8,4712.7,52.79327878]
[1757751565442,394.01213154,4712.8,4712.7,52.79327878]
[1757751565604,394.01213154,4712.8,4712.7,52.51806709]
[1757751566803,395.24213154,4712.8,4712.7,52.51806709]
[1757751567505,395.24213154,4712.8,4712.7,22.51806709]
[1757751567815,395.24213154,4712.8,4712.7,52.51806709]
[1757751568220,396.47213154,4712.8,4712.7,52.51806709]
[1757751569816,397.70213154,4712.8,4712.7,52.51806709]
[1757751571446,398.93213154,4712.8,4712.7,52.51806709]
[1757751572707,400.16213154,4712.8,4712.7,22.51806709]
[1757751572908,400.16213154,4712.8,4712.7,52.51806709]
[1757751574162,401.39213154,4712.8,4712.7,52.51806709]
[1757751575763,401.39213154,4712.8,4712.7,22.51806709]
[1757751575972,402.62213154,4712.8,4712.7,52.51806709]
[1757751576733,402.62213154,4712.8,4712.7,22.51806709]
[1757751576933,402.62213154,4712.8,4712.7,52.51806709]
[1757751577359,403.85213154,4712.8,4712.7,52.51806709]
[1757751578873,405.08213154,4712.8,4712.7,52.51806709]
[1757751579867,403.91288464,4712.8,4712.7,52.79327878]
[1757751580372,404.08421531,4712.8,4712.7,52.79327878]
[1757751580529,398.36726942,4712.8,4712.7,52.79327878]
[1757751580748,397.30860009,4712.8,4712.7,52.79327878]
[1757751580947,397.30860009,4712.8,4712.7,23.00517878]
[1757751581191,396.24993076,4712.8,4712.7,53.00517878]
[1757751581687,396.42126143,4712.8,4712.7,53.00517878]
[1757751583294,397.65126143,4712.8,4712.7,53.00517878]
[1757751583595,397.65126143,4712.8,4712.7,40.19517878]
[1757751584075,396.59266382,4712.8,4712.7,40.19517878]
[1757751584472,396.59266382,4712.8,4712.7,39.91996709]
[1757751584677,397.82266382,4712.8,4712.7,39.91996709]
[1757751585184,397.82266382,4712.8,4712.7,48.66196709]
[1757751585388,397.82266382,4712.8,4712.7,55.36996709]
[1757751586191,399.05266382,4712.8,4712.7,55.36996709]
[1757751586989,399.05266382,4712.8,4712.7,46.62796709]
[1757751587189,399.05266382,4712.8,4712.7,39.91996709]
[1757751587491,400.28266382,4712.8,4712.7,39.91996709]
[1757751588997,401.51266382,4712.8,4712.7,39.91996709]
[1757751590332,402.74266382,4712.8,4712.7,39.91996709]
[1757751591902,403.97266382,4712.8,4712.7,39.91996709]
[1757751592278,403.97266382,4712.8,4712.7,9.91996709]
[1757751592473,403.97266382,4712.8,4712.7,39.91996709]
[1757751592902,401.85394024,4712.8,4712.7,39.91996709]
[1757751593113,394.7124623,4712.8,4712.7,40.19517878]
[1757751593406,395.79089746,4712.8,4712.7,40.19517878]
[1757751593613,392.84337112,4712.8,4712.7,40.19517878]
[1757751593917,392.05583377,4712.8,4712.7,40.19517878]
[1757751594611,393.28583377,4712.8,4712.7,40.19517878]
[1757751594774,390.53113781,4712.8,4712.7,40.19517878]
[1757751594978,385.59622344,4712.8,4712.7,40.19517878]
[1757751595219,383.44999044,4712.8,4712.7,54.01717878]
[1757751595511,379.15752444,4712.8,4712.7,51.70734878]
[1757751595755,375.31745035,4712.8,4712.7,49.06534878]
[1757751596031,369.12394048,4712.8,4712.7,42.96734878]
[1757751596337,368.66494048,4712.8,4712.7,37.42634878]
[1757751597136,367.55494048,4712.8,4712.7,34.69034878]
[1757751597337,364.00711948,4712.8,4712.7,29.91252778]
[1757751598517,361.65371,4712.8,4712.7,29.91252778]
[1757751598835,353.40062059,4712.8,4712.7,29.91252778]
[1757751598997,351.93593614,4712.8,4712.7,29.92082778]
[1757751599199,346.04110751,4712.8,4712.7,29.92082778]
[1757751599542,344.57642334,4712.8,4712.7,29.92082778]
[1757751599834,336.50199347,4712.8,4712.7,29.92082778]
[1757751600137,330.80007639,4712.8,4712.7,31.00465406]
[1757751600293,311.01595051,4712.8,4712.7,25.17339306]
[1757751600731,299.89431077,4712.8,4712.7,24.08956678]
[1757751600919,299.89431077,4712.8,4712.7,25.17339306]
[1757751601113,301.12431077,4712.8,4712.7,30.13220772]
[1757751601317,291.38951556,4712.8,4712.7,16.24611972]
[1757751601546,284.15589231,4712.8,4712.7,30.36006438]
[1757751601841,276.74376878,4712.8,4712.7,30.36006438]
[1757751602047,271.57536266,4712.8,4712.7,30.36006438]
[1757751602344,271.57536266,4712.8,4712.7,16.47397638]
[1757751602497,264.38941166,4712.8,4712.7,30.36006438]
[1757751602704,258.43474045,4712.8,4712.7,29.2762381]
[1757751602904,258.43474045,4712.8,4712.7,30.36006438]
[1757751603105,248.34579547,4712.8,4712.7,29.2762381]
[1757751603400,242.09612432,4712.8,4712.7,30.36006438]
[1757751603645,231.96428675,4712.8,4712.7,24.31742344]
[1757751603940,231.96428675,4712.8,4712.7,25.40124972]
[1757751603941,225.51421857,4712.8,4712.7,25.40124972]
[1757751604142,220.44834571,4712.8,4712.7,25.40124972]
[1757751604527,210.21071368,4712.8,4712.7,25.40124972]
[1757751604708,206.37049142,4712.8,4712.7,25.40124972]
[1757751604907,198.00328513,4712.8,4712.7,25.40124972]
[1757751605101,194.16344803,4712.8,4712.7,25.40124972]
[1757751605306,190.32744003,4712.8,4712.7,39.76542344]
[1757751605540,178.4738972,4712.8,4712.7,40.84924972]
[1757751605739,178.4738972,4712.8,4712.7,40.57403803]
[1757751605918,174.63381807,4712.8,4712.7,40.57403803]
[1757751606119,171.68635483,4712.8,4712.7,40.57403803]
[1757751606515,165.62605721,4712.8,4712.7,30.75021175]
[1757751606714,153.70799516,4712.8,4712.7,30.75021175]
[1757751606954,145.73748888,4712.8,4712.7,30.75021175]
[1757751607118,145.73748888,4712.8,4712.7,25.12603803]
[1757751607336,141.89755421,4712.8,4712.7,24.04221175]
[1757751607522,141.89755421,4712.8,4712.7,25.12603803]
[1757751607722,141.89755421,4712.8,4712.7,30.07094364]
[1757751607924,138.06145683,4712.8,4712.7,30.07094364]
[1757751608840,132.99550626,4712.8,4712.7,28.98711736]
[1757751609013,129.15544005,4712.8,4712.7,28.98711736]
[1757751609212,130.38544005,4712.8,4712.7,28.98711736]
[1757751609424,120.83521978,4712.8,4712.7,28.98711736]
[1757751610122,120.83521978,4712.8,4712.7,28.38631736]
[1757751610310,120.83521978,4712.8,4712.7,23.44141175]
[1757751610542,122.06521978,4712.8,4712.7,23.44141175]
[1757751611815,123.29521978,4712.8,4712.7,9.55532375]
[1757751612142,123.29521978,4712.8,4712.7,23.44141175]
[1757751612840,123.57051978,4712.8,4712.7,19.16401175]
[1757751613031,123.57051978,4712.8,4712.7,27.38846466]
[1757751613227,124.80051978,4712.8,4712.7,27.38846466]
[1757751614476,124.52521978,4712.8,4712.7,27.38846466]
[1757751614622,125.75521978,4712.8,4712.7,27.38846466]
[1757751615051,126.03051978,4712.8,4712.7,23.88346466]
[1757751615252,122.19046498,4712.8,4712.7,42.83646466]
[1757751615455,117.95327061,4712.8,4712.7,42.83646466]
[1757751615754,117.95527061,4712.8,4712.7,42.83646466]
[1757751616154,119.18527061,4712.8,4712.7,39.20036809]
[1757751616359,119.18527061,4712.8,4712.7,39.83605356]
[1757751616519,119.18527061,4712.8,4712.7,34.88874399]
[1757751617153,119.18527061,4712.8,4712.7,22.64374399]
[1757751617364,120.41527061,4712.8,4712.7,26.14874399]
[1757751617552,120.41527061,4712.8,4712.7,24.38826301]
[1757751617962,120.41527061,4712.8,4712.7,20.88326301]
[1757751618164,120.41527061,4712.8,4712.7,27.38826301]
[1757751618372,120.13997061,4712.8,4712.7,27.38826301]
[1757751618853,121.36997061,4712.8,4712.7,27.68696301]
[1757751620036,121.36997061,4712.8,4712.7,22.73944399]
[1757751620236,122.59997061,4712.8,4712.7,8.85335599]
[1757751620535,122.59997061,4712.8,4712.7,22.73944399]
[1757751621231,116.54387424,4712.8,4712.7,22.73944399]
[1757751621646,114.47246073,4712.8,4712.7,22.73944399]
[1757751621842,110.93010593,4712.8,4712.7,22.44074399]
[1757751622073,110.93010593,4712.8,4712.7,20.32313826]
[1757751622231,110.93010593,4712.8,4712.7,20.42873826]
[1757751622432,108.81137953,4712.8,4712.7,21.06442373]
[1757751622730,106.69265272,4712.8,4712.7,21.06442373]
[1757751622935,107.92265272,4712.8,4712.7,21.06442373]
[1757751623165,107.92265272,4712.8,4712.7,21.3558739]
[1757751623575,105.80392591,4712.8,4712.7,21.3558739]
[1757751623731,103.68527691,4712.8,4712.7,21.3558739]
[1757751624174,103.68527691,4712.8,4712.7,22.1478739]
[1757751624372,104.91527691,4712.8,4712.7,22.1478739]
[1757751625240,104.91527691,4712.8,4712.7,37.5948739]
[1757751625571,104.91527691,4712.8,4712.7,23.7087859]
[1757751625785,107.89177691,4712.8,4712.7,35.31445264]
[1757751626088,61.69667691,4712.8,4712.7,38.42240247]
[1757751626382,61.69667691,4712.8,4712.7,39.21440247]
[1757751626583,57.45716781,4712.8,4712.7,42.21440247]
[1757751627105,58.68716781,4712.8,4712.7,37.26577347]
[1757751627409,58.68716781,4712.8,4712.7,41.0708445]
[1757751628507,59.91716781,4712.8,4712.7,41.0708445]
[1757751628669,56.07707654,4712.8,4712.7,41.0708445]
[1757751628995,53.95830527,4712.8,4712.7,41.0708445]
[1757751629170,51.83853316,4712.8,4712.7,41.0708445]
[1757751629366,51.83853316,4712.8,4712.7,33.7738445]
[1757751629566,53.99843035,4712.8,4712.7,32.1478445]
[1757751629793,53.99843035,4712.8,4712.7,33.47777347]
[1757751629959,55.22843035,4712.8,4712.7,33.47777347]
[1757751630454,55.22843035,4712.8,4712.7,22.59168547]
[1757751630660,55.22843035,4712.8,4712.7,36.47777347]
[1757751630881,53.06853316,4712.8,4712.7,36.47777347]
[1757751631064,53.06853316,4712.8,4712.7,36.76922364]
[1757751631477,54.29853316,4712.8,4712.7,22.88313564]
[1757751631684,54.29853316,4712.8,4712.7,36.76922364]
[1757751632675,54.29853316,4712.8,4712.7,36.47977347]
[1757751632991,55.52853316,4712.8,4712.7,36.47977347]
[1757751633598,55.52853316,4712.8,4712.7,22.59368547]
[1757751633801,55.52853316,4712.8,4712.7,36.47977347]
[1757751634210,56.75853316,4712.8,4712.7,36.47977347]
[1757751635567,57.98853316,4712.8,4712.7,22.59368547]
[1757751635900,57.98853316,4712.8,4712.7,36.58537347]
[1757751636417,60.14843035,4712.8,4712.7,36.58537347]
[1757751636963,61.37843035,4712.8,4712.7,33.07437347]
[1757751637285,61.37843035,4712.8,4712.7,36.58637347]
[1757751638363,62.60843035,4712.8,4712.7,36.58637347]
[1757751638571,62.60843035,4712.8,4712.7,33.94437347]
[1757751639587,63.83843035,4712.8,4712.7,33.94437347]
[1757751639769,63.83843035,4712.8,4712.7,30.43237347]
[1757751639979,63.83843035,4712.8,4712.7,33.94437347]
[1757751640811,63.83843035,4712.8,4712.7,20.05828547]
[1757751641017,65.06843035,4712.8,4712.7,30.43237347]
[1757751641223,65.06843035,4712.8,4712.7,33.94437347]
[1757751642588,66.29843035,4712.8,4712.7,33.94437347]
[1757751642783,66.29843035,4712.8,4712.7,20.05828547]
[1757751643025,66.29843035,4712.8,4712.7,33.94437347]
[1757751643226,66.29843035,4712.8,4712.7,30.43237347]
[1757751643425,66.29843035,4712.8,4712.7,33.94437347]
[1757751643888,67.52843035,4712.8,4712.7,33.94437347]
[1757751645512,68.75843035,4712.8,4712.7,33.94437347]
[1757751645832,68.75843035,4712.8,4712.7,30.43237347]
[1757751646128,68.75843035,4712.8,4712.7,33.94437347]
[1757751646330,68.75843035,4712.8,4712.7,30.43237347]
[1757751646530,68.75843035,4712.8,4712.7,33.94437347]
[1757751647023,68.75843035,4712.8,4712.7,20.05828547]
[1757751647231,69.98843035,4712.8,4712.7,33.94437347]
[1757751648546,71.21843035,4712.8,4712.7,33.94437347]
[1757751649950,72.44843035,4712.8,4712.7,33.94437347]
[1757751650104,72.44843035,4712.8,4712.7,20.05828547]
[1757751650311,72.44843035,4712.8,4712.7,33.94437347]
[1757751650647,72.00353035,4712.8,4712.7,33.94437347]
[1757751651019,72.44843035,4712.8,4712.7,33.94437347]
[1757751651646,73.67843035,4712.8,4712.7,33.94437347]
[1757751653128,74.90843035,4712.8,4712.7,33.94437347]
[1757751654559,75.69353035,4712.8,4712.7,33.94437347]
[1757751654858,76.28633035,4712.8,4712.7,34.2174903]
[1757751655223,75.84143035,4712.8,4712.7,34.2174903]
[1757751655423,73.94703035,4712.8,4712.7,34.2174903]
[1757751656070,75.17703035,4712.8,4712.7,34.2174903]
[1757751656651,74.87933035,4712.8,4712.7,34.2174903]
[1757751657382,72.40990035,4712.8,4712.7,35.20486865]
[1757751657689,73.63990035,4712.8,4712.7,36.7698903]
[1757751658780,73.63990035,4712.8,4712.7,34.9629903]
[1757751658983,74.86990035,4712.8,4712.7,34.9629903]
[1757751660145,75.14220035,4712.8,4712.7,30.7054903]
[1757751660349,78.53209754,4712.8,4712.7,20.05728547]
[1757751660544,78.26660035,4712.8,4712.7,30.43237347]
[1757751660783,78.73660035,4712.8,4712.7,30.43237347]
[1757751660987,78.73660035,4712.8,4712.7,33.94337347]
[1757751661999,79.96660035,4712.8,4712.7,33.94337347]
[1757751662473,79.96660035,4712.8,4712.7,30.32677347]
[1757751662671,82.12649754,4712.8,4712.7,33.203088]
[1757751663344,83.35649754,4712.8,4712.7,33.203088]
[1757751664379,83.35649754,4712.8,4712.7,29.691088]
[1757751664589,83.35649754,4712.8,4712.7,33.203088]
[1757751664771,84.58649754,4712.8,4712.7,33.203088]
[1757751665491,84.58649754,4712.8,4712.7,9.707]
[1757751665695,84.58649754,4712.8,4712.7,13.221]
[1757751665853,84.11649754,4712.8,4712.7,13.221]
[1757751666053,84.11649754,4712.8,4712.7,27.38020483]
[1757751666254,85.34649754,4712.8,4712.7,27.38020483]
[1757751667795,86.57649754,4712.8,4712.7,27.38020483]
[1757751669492,87.80649754,4712.8,4712.7,27.38020483]
[1757751669796,85.91209754,4712.8,4712.7,27.38020483]
[1757751670091,87.80649754,4712.8,4712.7,27.38020483]
[1757751670759,89.03649754,4712.8,4712.7,27.107088]
[1757751670970,89.50649754,4712.8,4712.7,13.221]
[1757751671198,89.50649754,4712.8,4712.7,27.107088]
[1757751672080,90.73649754,4712.8,4712.7,27.107088]
[1757751673776,91.96649754,4712.8,4712.7,27.107088]
[1757751675372,93.19649754,4712.8,4712.7,27.107088]
[1757751676883,91.78979754,4712.8,4712.7,27.107088]
[1757751677105,91.78979754,4712.8,4712.7,27.38020483]
[1757751677409,92.08739754,4712.8,4712.7,28.0163041]
[1757751678709,93.31739754,4712.8,4712.7,14.1302161]
[1757751679024,93.31739754,4712.8,4712.7,28.0163041]
[1757751679728,93.31739754,4712.8,4712.7,14.1302161]
[1757751679914,93.31739754,4712.8,4712.7,28.0163041]
[1757751680083,94.54739754,4712.8,4712.7,28.0163041]
[1757751680686,94.54739754,4712.8,4712.7,27.38020483]
[1757751681582,95.77739754,4712.8,4712.7,27.38020483]
[1757751682883,97.00739754,4712.8,4712.7,27.38020483]
[1757751683828,98.89899754,4712.8,4712.7,27.107088]
[1757751684218,100.12899754,4712.8,4712.7,27.107088]
[1757751685323,100.57399754,4712.8,4712.7,23.593088]
[1757751685485,100.57399754,4712.8,4712.7,27.108088]
[1757751685818,101.80399754,4712.8,4712.7,27.108088]
[1757751686039,101.80399754,4712.8,4712.7,13.222]
[1757751686248,101.80399754,4712.8,4712.7,27.108088]
[1757751687087,103.03399754,4712.8,4712.7,27.108088]
[1757751687323,100.69739754,4712.8,4712.7,27.108088]
[1757751687532,98.23990035,4712.8,4712.7,28.14910483]
[1757751688531,99.46990035,4712.8,4712.7,27.38120483]
[1757751689887,100.69990035,4712.8,4712.7,27.68730483]
[1757751690497,100.69990035,4712.8,4712.7,28.14910483]
[1757751691438,101.92990035,4712.8,4712.7,28.14910483]
[1757751692351,101.92990035,4712.8,4712.7,27.68730483]
[1757751692719,103.15990035,4712.8,4712.7,27.68730483]
[1757751693226,103.15990035,4712.8,4712.7,27.38120483]
[1757751694342,104.38990035,4712.8,4712.7,27.38120483]
[1757751694906,104.68750035,4712.8,4712.7,27.38220483]
[1757751695142,106.84739754,4712.8,4712.7,27.38220483]
[1757751695732,108.07739754,4712.8,4712.7,27.38220483]
[1757751696239,108.07739754,4712.8,4712.7,13.49611683]
[1757751696442,108.07739754,4712.8,4712.7,27.38220483]
[1757751697040,109.30739754,4712.8,4712.7,27.38220483]
[1757751697338,109.30739754,4712.8,4712.7,13.49611683]
[1757751697541,109.30739754,4712.8,4712.7,27.38220483]
[1757751698301,112.87399754,4712.8,4712.7,27.38220483]
[1757751698840,112.87399754,4712.8,4712.7,27.109088]
[1757751699136,112.87399754,4712.8,4712.7,23.593088]
[1757751699339,112.87399754,4712.8,4712.7,27.109088]
[1757751699714,114.10399754,4712.8,4712.7,27.109088]
[1757751700416,114.10399754,4712.8,4712.7,13.223]
[1757751700733,114.10399754,4712.8,4712.7,27.109088]
[1757751701710,114.10399754,4712.8,4712.7,23.593088]
[1757751702043,115.33399754,4712.8,4712.7,27.109088]
[1757751704112,116.56399754,4712.8,4712.7,27.109088]
[1757751704533,116.11899754,4712.8,4712.7,27.109088]
[1757751705969,115.15979754,4712.8,4712.7,23.86620483]
[1757751706158,112.99990035,4712.8,4712.7,30.00510483]
[1757751707367,114.22990035,4712.8,4712.7,28.11020483]
[1757751708234,114.22990035,4712.8,4712.7,27.67890483]
[1757751708435,114.22990035,4712.8,4712.7,27.38120483]
[1757751708626,117.91869754,4712.8,4712.7,27.38120483]
[1757751708830,120.19219754,4712.8,4712.7,27.38220483]
[1757751709171,120.19219754,4712.8,4712.7,29.48510483]
[1757751709172,115.45990035,4712.8,4712.7,29.48510483]
[1757751709472,115.45990035,4712.8,4712.7,30.56982049]
[1757751709851,116.68990035,4712.8,4712.7,30.56982049]
[1757751710653,116.68990035,4712.8,4712.7,30.57982049]
[1757751711336,117.91990035,4712.8,4712.7,30.57982049]
[1757751712749,119.14990035,4712.8,4712.7,30.57982049]